fUSD/lending_fUSD_20241118
["ID","MTS","AMOUNT","RATE_DAILY","PERIOD"]
[342460929,1731909040510,-518798.24747045,0.0001,2]
[342460938,1731909043321,-7847.78883416,0.0001,2]
[342460939,1731909043334,-10513.12500003,0.0001,2]
[342460940,1731909043425,-16188.51886462,0.0001,2]
[342460941,1731909043436,-65854.75508587,0.0001,2]
[342460942,1731909043448,-96563.88289737,0.0001,2]
[342460943,1731909043461,-1892.98,0.0001,2]
[342460944,1731909043472,-295.61123459,0.0001,2]
[342460945,1731909043487,-27209.1,0.0001,2]
[342460946,1731909043525,-2396.44294447,0.0001,2]
[342460953,1731909044086,-3978.97126151,0.0001,2]
[342460954,1731909044099,-2890.11028263,0.0001,2]
[342460955,1731909046218,-2695.19999978,0.0001,2]
[342460956,1731909046242,-822.7541379,0.0001,2]
[342460957,1731909046269,-1323.4,0.0001,2]
[342460958,1731909046380,-4762.04061838,0.0001,2]
[342460959,1731909046479,-25090.38563748,0.0001,2]
[342460965,1731909072203,250.0,9.631e-05,2]
[342460966,1731909088488,3683.34,8.219e-05,2]
[342460967,1731909101495,3148.15,9.621e-05,2]
[342460968,1731909105301,388.83,9.621e-05,2]
[342460969,1731909150918,1000.0,9.661e-05,2]
[342460970,1731909165314,1192.2395,9.9e-05,2]
[342460971,1731909179416,26456.6441,9.9e-05,2]
[342460972,1731909277766,197.78,7.954e-05,2]
[342460973,1731909295534,999.999999,1e-05,2]
[342460974,1731909408372,160550.9904,9.9e-05,2]
[342460976,1731909495175,2867.6,9.219e-05,2]
[342460977,1731909549322,250.0,9.217e-05,2]
[342460978,1731909636625,1500.0,9.806e-05,2]
[342460979,1731909645067,150.0,9.896e-05,2]
[342460980,1731909645178,150.0,9.855e-05,2]
[342460981,1731909666131,150.0,9.734e-05,2]
[342460982,1731909686545,3310.39,9.118e-05,2]
[342460983,1731909690379,-300.0,0.0001,3]
[342460984,1731909705000,150.0,9.784e-05,2]
[342460985,1731909721291,300.0,9.899e-05,2]
[342460986,1731909724742,20734.8205,9.9e-05,2]
[342460987,1731909726582,8825.3951,9.9e-05,2]
[342460988,1731909736972,2149.5239,9.9e-05,2]
[342460989,1731909746089,5944.858239,9.9e-05,2]
[342460990,1731909752240,156671.2808,9.9e-05,2]
[342460991,1731909752858,8651.0,8e-05,2]
[342460992,1731909759711,5000.0,9.9e-05,2]
[342460993,1731909763025,645.13786565,9.8e-05,2]
[342460994,1731909766136,3499.17,8.219e-05,2]
[342460995,1731909790812,583.4287,9.9e-05,2]
[342460996,1731909810861,500.0,8.152e-05,2]
[342460997,1731909811013,500.0,8.153e-05,2]
[342460998,1731909833155,65619.95565898,9.8e-05,2]
[342460999,1731909866802,300.0,9.899e-05,2]
[342461000,1731909900906,1000.0,9.9e-05,2]
[342461001,1731909902606,300.0,9.899e-05,2]
[342461002,1731909902934,379990.87452123,9.9e-05,2]
[342461003,1731909942380,150.0,9.75e-05,2]
[342461004,1731909942529,150.0,9.893e-05,2]
[342461005,1731909962861,150.0,9.899e-05,2]
[342461006,1731909977310,4243.53,9.103e-05,2]
[342461008,1731910003701,22865.9364,9.8e-05,2]
[342461009,1731910015107,1000.0,9.141e-05,2]
[342461010,1731910026161,2185.75,9.12e-05,2]
[342461011,1731910046406,821.1755,9.8e-05,2]
[342461012,1731910074060,197.78,7.295e-05,2]
[342461013,1731910075209,22831.0889,9.8e-05,2]
[342461014,1731910082773,250.0,9.118e-05,2]
[342461015,1731910133051,200.0,9.131e-05,2]
[342461016,1731910139615,34908.2306,9.8e-05,2]
[342461017,1731910142388,150.0,9.899e-05,2]
[342461020,1731910208206,250.0,9.131e-05,2]
[342461021,1731910222049,4728.3805,9.8e-05,2]
[342461031,1731910232430,-56429.8687,9.9e-05,2]
[342461032,1731910232443,-24650.7085,9.9e-05,2]
[342461033,1731910232453,-500.0,9.9e-05,2]
[342461034,1731910232463,-305114.43689857,9.9e-05,2]
[342461035,1731910232476,-1165.13075767,9.9e-05,2]
[342461036,1731910232493,-2718.52203728,9.9e-05,2]
[342461037,1731910232522,-48281.08481451,9.9e-05,2]
[342461038,1731910232534,-54184.78904245,9.9e-05,2]
[342461039,1731910232554,-310.31,9.9e-05,2]
[342461042,1731910237605,-16831.31729734,9.9e-05,2]
[342461043,1731910237643,-997.54910005,9.9e-05,2]
[342461044,1731910237656,-5306.65431983,9.9e-05,2]
[342461047,1731910238151,-12144.01014292,9.9e-05,2]
[342461048,1731910238200,-11318.07618266,9.9e-05,2]
[342461049,1731910238213,-1512.75604773,9.9e-05,2]
[342461050,1731910238224,-2010.92058438,9.9e-05,2]
[342461051,1731910238241,-1774.65,9.9e-05,2]
[342461052,1731910238253,-14167.46466396,9.9e-05,2]
[342461053,1731910238269,-22352.36335382,9.9e-05,2]
[342461054,1731910238281,-711.85380473,9.9e-05,2]
[342461055,1731910238309,-85929.81102983,9.9e-05,2]
[342461056,1731910238319,-5430.84712679,9.9e-05,2]
[342461057,1731910238329,-6532953.29192829,9.9e-05,2]
[342461058,1731910238339,-4888.8716,9.9e-05,2]
[342461059,1731910238349,-34818.98862628,9.9e-05,2]
[342461060,1731910238359,-186.32149877,9.9e-05,2]
[342461061,1731910238369,-14597.05245166,9.9e-05,2]
[342461062,1731910238378,-150.0,9.937e-05,2]
[342461063,1731910238389,-506.15,9.941e-05,2]
[342461064,1731910238401,-13778.80709058,9.95e-05,2]
[342461065,1731910238415,-165.4,9.951e-05,2]
[342461066,1731910238425,-150.0,9.959e-05,2]
[342461067,1731910238435,-4036.28,9.962e-05,2]
[342461068,1731910238446,-431.59,9.97e-05,2]
[342461069,1731910238456,-866.54,9.97e-05,2]
[342461070,1731910238465,-365.13,9.97e-05,2]
[342461071,1731910238475,-322.42,9.97e-05,2]
[342461072,1731910238488,-303.31,9.97e-05,2]
[342461073,1731910238497,-500.0,9.973e-05,2]
[342461074,1731910238507,-500.0,9.973e-05,2]
[342461075,1731910238517,-500.0,9.973e-05,2]
[342461076,1731910238526,-261.50394353,9.973e-05,2]
[342461077,1731910238535,-150.2,9.981e-05,2]
[342461078,1731910238546,-630.151,9.981e-05,2]
[342461079,1731910238555,-1993.0,9.981e-05,2]
[342461080,1731910238566,-562.465,9.99e-05,2]
[342461081,1731910238577,-1926.0,9.99e-05,2]
[342461082,1731910238586,-814.0,9.99e-05,2]
[342461083,1731910238597,-1260.0,9.99e-05,2]
[342461084,1731910238607,-3747.0,9.99e-05,2]
[342461085,1731910238617,-3492.0,9.99e-05,2]
[342461086,1731910238627,-921.0,9.99e-05,2]
[342461087,1731910238637,-13649.0,9.99e-05,2]
[342461088,1731910238648,-5937.0,9.99e-05,2]
[342461089,1731910238657,-1161.0,9.99e-05,2]
[342461090,1731910238667,-250.701,9.99e-05,2]
[342461091,1731910238683,-1000.0,9.99e-05,2]
[342461092,1731910238692,-150.0,9.992e-05,2]
[342461093,1731910238702,-560.49,9.999e-05,2]
[342461094,1731910238712,-222.0,0.0001,2]
[342461095,1731910238723,-222.0,0.0001,2]
[342461096,1731910238734,-175.74185818,0.0001,2]
[342461097,1731910238744,-2113186.33622367,0.0001,2]
[342461099,1731910239340,-1451.09461146,0.0001,2]
[342461100,1731910239352,-1456.0236875,0.0001,2]
[342461101,1731910239620,-2164.26371877,0.0001,2]
[342461102,1731910239634,-347.02316393,0.0001,2]
[342461103,1731910239835,-1581.9392667,0.0001,2]
[342461104,1731910239847,-3590.36615546,0.0001,2]
[342461133,1731910242452,-781.27465,0.0001,2]
[342461134,1731910242557,-15154.99997,0.0001,2]
[342461135,1731910242569,-23470.0,0.0001,2]
[342461136,1731910242580,-2068.62958451,0.0001,2]
[342461137,1731910242591,-10165.85398623,0.0001,2]
[342461138,1731910242602,-6033.25518118,0.0001,2]
[342461139,1731910242737,-14269.389368,0.0001,2]
[342461140,1731910242748,-3654.70069091,0.0001,2]
[342461141,1731910242759,-4903.18441713,0.0001,2]
[342461142,1731910242770,-4596.07663682,0.0001,2]
[342461151,1731910245600,-500.0,9.973e-05,2]
[342461152,1731910245610,-912.34538131,0.0001,2]
[342461153,1731910245716,-22023.17552872,0.0001,2]
[342461154,1731910245891,-578.81037851,0.0001,2]
[342461156,1731910249114,52624.0176,9.8e-05,2]
[342461159,1731910305859,150.0,9.74e-05,2]
[342461160,1731910322179,46850.4812,9.8e-05,2]
[342461161,1731910358925,266.83990233,9.806e-05,2]
[342461163,1731910367031,150.0,9.74e-05,2]
[342461164,1731910374748,17981.6064,9.8e-05,2]
[342461165,1731910412416,500.0,9.722e-05,2]
[342461166,1731910468893,3324.21,8.219e-05,2]
[342461167,1731910544912,150.0,9.863e-05,2]
[342461168,1731910589399,153.77315038,9.777e-05,2]
[342461169,1731910607635,150.0,9.822e-05,2]
[342461170,1731910652109,746.08,9.7e-05,2]
[342461174,1731910702633,227.0,9.801e-05,2]
[342461187,1731910753298,395.08,9.542e-05,2]
[342461190,1731910759731,1000.0,9.555e-05,2]
[342461206,1731910844666,250.0,9.563e-05,2]
[342461207,1731910935669,150.36,9.64e-05,2]
[342461208,1731910947486,250.0,9.578e-05,2]
[342461209,1731910965205,150.0,9.884e-05,2]
[342461210,1731911025416,150.0,9.831e-05,2]
[342461211,1731911025458,150.0,9.825e-05,2]
[342461213,1731911152339,3157.99,8.219e-05,2]
[342461214,1731911154612,1654.00110328,6.94e-05,2]
[342461215,1731911177020,2003.0,0.0002,60]
[342461216,1731911193597,1655.19,9.34e-05,2]
[342461217,1731911205182,150.0,9.852e-05,2]
[342461221,1731911256705,1474.86403724,9.853e-05,2]
[342461222,1731911265776,150.0,9.838e-05,2]
[342461223,1731911265842,150.0,9.869e-05,2]
[342461224,1731911265890,150.0,9.721e-05,2]
[342461225,1731911266070,150.0,9.892e-05,2]
[342461226,1731911266114,150.0,9.783e-05,2]
[342461227,1731911266163,150.0,9.736e-05,2]
[342461228,1731911266196,150.0,9.876e-05,2]
[342461229,1731911266237,150.0,9.731e-05,2]
[342461230,1731911266301,150.0,9.787e-05,2]
[342461251,1731911423559,1313.0,9.8e-05,2]
[342461252,1731911425684,1000.0,9.179e-05,2]
[342461269,1731911431662,-2795.12,9.9e-05,2]
[342461271,1731911431672,-70.51090043,9.903e-05,2]
[342461277,1731911431790,-79.48909957,9.903e-05,2]
[342461278,1731911431800,-150.0,9.918e-05,2]
[342461279,1731911431811,-150.0,9.919e-05,2]
[342461280,1731911431820,-150.0,9.921e-05,2]
[342461281,1731911431830,-150.0,9.931e-05,2]
[342461282,1731911431842,-150.0,9.933e-05,2]
[342461283,1731911431851,-150.0,9.934e-05,2]
[342461284,1731911431860,-150.0,9.947e-05,2]
[342461285,1731911431869,-150.0,9.967e-05,2]
[342461286,1731911431882,-150.0,9.967e-05,2]
[342461287,1731911431891,-153.79114043,9.973e-05,2]
[342461288,1731911431914,-8.92540467,9.973e-05,2]
[342461289,1731911431929,-300.0,9.979e-05,2]
[342461290,1731911431938,-2961.71864533,9.98e-05,2]
[342461291,1731911431950,-1647.1021,9.98e-05,2]
[342461292,1731911431962,-1304.43794484,9.98e-05,2]
[342461293,1731911431973,-1359.47448734,9.999e-05,2]
[342461294,1731911431985,-888.29351266,9.999e-05,2]
[342461295,1731911431995,-223.072,9.999e-05,2]
[342461296,1731911432006,-593.55085352,9.999e-05,2]
[342461297,1731911432055,-851.94168474,9.999e-05,2]
[342461308,1731911437752,-500.0,9.973e-05,2]
[342461309,1731911437770,-979.2075275,9.999e-05,2]
[342461310,1731911437784,-332.15173475,9.999e-05,2]
[342461311,1731911437797,-2823.0,9.999e-05,2]
[342461312,1731911437811,-4010.37000112,9.999e-05,2]
[342461313,1731911437914,-578.70615045,9.999e-05,2]
[342461314,1731911437926,-1988.66453928,9.999e-05,2]
[342461315,1731911437938,-8063.61724454,9.999e-05,2]
[342461316,1731911437951,-4677.75738931,9.999e-05,2]
[342461317,1731911437963,-371.265,9.999e-05,2]
[342461318,1731911437975,-4677.18492924,9.999e-05,2]
[342461319,1731911437994,-1126.50512378,9.999e-05,2]
[342461325,1731911439630,-932.48,9.999e-05,2]
[342461326,1731911439873,-1180.67290518,9.999e-05,2]
[342461327,1731911439887,-465.91473275,9.999e-05,2]
[342461328,1731911439915,-1590.65548125,9.999e-05,2]
[342461329,1731911439927,-519.14717886,9.999e-05,2]
[342461330,1731911439939,-483.80163546,9.999e-05,2]
[342461344,1731911442681,-738.92034025,9.999e-05,2]
[342461346,1731911442707,-2016.6,9.999e-05,2]
[342461348,1731911442735,-2467.1499995,9.999e-05,2]
[342461350,1731911442750,-7440.45079688,9.999e-05,2]
[342461352,1731911442762,-3197.54513101,9.999e-05,2]
[342461355,1731911442783,-14444.90669577,9.999e-05,2]
[342461358,1731911442800,-426.29565446,9.999e-05,2]
[342461360,1731911442813,-373.5132,9.999e-05,2]
[342461362,1731911442827,-1431.1848297,9.999e-05,2]
[342461364,1731911442840,-1663.8130781,9.999e-05,2]
[342461366,1731911442851,-7050.85224,9.999e-05,2]
[342461367,1731911442863,-710.28778257,9.999e-05,2]
[342461368,1731911442910,-950.82639654,9.999e-05,2]
[342461369,1731911442922,-925.04151052,9.999e-05,2]
[342461370,1731911442931,-500.0,9.999e-05,2]
[342461371,1731911442939,-1765.20848948,0.0001,2]
[342461372,1731911443006,-13984.61267531,0.0001,2]
[342461373,1731911443017,-3095.36681398,0.0001,2]
[342461374,1731911443028,-1000.0,0.0001,2]
[342461376,1731911443040,-666.69174486,0.0001,2]
[342461378,1731911443051,-529.685291,0.0001,2]
[342461380,1731911443062,-7764.0017081,0.0001,2]
[342461401,1731911445815,-1139.1771887,0.0001,2]
[342461402,1731911445827,-10714.47,0.0001,2]
[342461403,1731911445935,-37701.09588244,0.0001,2]
[342461404,1731911445946,-5001.74995051,0.0001,2]
[342461405,1731911445969,-9100.0,0.0001,2]
[342461406,1731911446006,-400.18016289,0.0001,2]
[342461407,1731911446017,-9709.2583065,0.0001,2]
[342461408,1731911446028,-756.96979252,0.0001,2]
[342461409,1731911446123,-7238.13723414,0.0001,2]
[342461414,1731911459394,1034.15051578,9.8e-05,2]
[342461415,1731911469341,483.93,9.67e-05,2]
[342461416,1731911502578,250.0,9.651e-05,2]
[342461417,1731911624764,150.0,9.724e-05,2]
[342461418,1731911687772,150.0,9.802e-05,2]
[342461419,1731911858654,1101.0,9.8e-05,2]
[342461420,1731911868050,150.0,9.805e-05,2]
[342461421,1731911928898,150.0,9.833e-05,2]
[342461422,1731911928957,150.0,9.799e-05,2]
[342461423,1731911975235,259.38,9.9e-05,2]
[342461424,1731911981711,250.0,9.626e-05,2]
[342461425,1731912022559,827.59,9.59e-05,2]
[342461426,1731912024957,3134.12180871,0.00023,120]
[342461427,1731912031820,3000.09,8.219e-05,2]
[342461428,1731912123828,511.62626349,0.00023,120]
[342461429,1731912143604,161.32,9.588e-05,2]
[342461430,1731912154543,1000.0,9.597e-05,2]
[342461431,1731912165073,150.0,9.789e-05,2]
[342461435,1731912285313,150.0,9.862e-05,2]
[342461436,1731912285363,150.0,9.877e-05,2]
[342461437,1731912312543,418.9,9.9e-05,2]
[342461438,1731912345353,150.0,9.872e-05,2]
[342461439,1731912417630,169.28,9.65e-05,2]
[342461464,1731912526490,150.0,9.871e-05,2]
[342461465,1731912526613,150.0,9.77e-05,2]
[342461466,1731912584982,150.0,9.869e-05,2]
[342461478,1731912632721,-150.0,9.902e-05,2]
[342461479,1731912632731,-150.0,9.939e-05,2]
[342461480,1731912632740,-2315.42264,9.951e-05,2]
[342461481,1731912632752,-1215.13599771,9.951e-05,2]
[342461482,1731912632762,-3530.55863771,9.959e-05,2]
[342461483,1731912632771,-150.0,9.96e-05,2]
[342461484,1731912632780,-300.0,9.97e-05,2]
[342461485,1731912632789,-3530.55863771,9.971e-05,2]
[342461486,1731912632798,-500.0,9.973e-05,2]
[342461487,1731912632807,-261.50394353,9.973e-05,2]
[342461488,1731912632817,-500.0,9.973e-05,2]
[342461489,1731912632826,-3530.55863771,9.976e-05,2]
[342461490,1731912632835,-250.0,9.985e-05,2]
[342461491,1731912632845,-1951.88,9.99e-05,2]
[342461492,1731912632854,-5282.5991349,9.992e-05,2]
[342461493,1731912632863,-955.026336,9.992e-05,2]
[342461494,1731912632873,-372.2866187,9.992e-05,2]
[342461495,1731912632883,-1102.3398313,9.992e-05,2]
[342461496,1731912632892,-1798.214,9.993e-05,2]
[342461497,1731912632905,-223.07248249,9.993e-05,2]
[342461498,1731912632915,-5056.2020291,9.993e-05,2]
[342461499,1731912632925,-4829.8049233,9.993e-05,2]
[342461500,1731912632934,-4603.4078176,9.993e-05,2]
[342461501,1731912632944,-844.1375436,9.993e-05,2]
[342461502,1731912632961,-733.2487511,9.993e-05,2]
[342461503,1731912632970,-622.3599586,9.993e-05,2]
[342461504,1731912632980,-973.5930326,9.993e-05,2]
[342461505,1731912632989,-844.8462338,9.993e-05,2]
[342461506,1731912632998,-716.099435,9.993e-05,2]
[342461507,1731912633007,-3530.55863771,9.993e-05,2]
[342461508,1731912633017,-1500.0,9.999e-05,2]
[342461509,1731912633027,-594.75,9.999e-05,2]
[342461510,1731912633036,-5007.98070143,0.0001,2]
[342461511,1731912633046,-35862.50240707,0.0001,2]
[342461512,1731912633067,-2600.29888,0.0001,2]
[342461513,1731912633085,-449595.60609639,0.0001,2]
[342461514,1731912633097,-251600.00000154,0.0001,2]
[342461515,1731912633111,-8400.43950767,0.0001,2]
[342461516,1731912633628,-1678870.13123861,0.0001,2]
[342461518,1731912637909,-778.3,0.0001,2]
[342461519,1731912637920,-28444.19737002,0.0001,2]
[342461520,1731912637973,-500.0,0.0001,2]
[342461521,1731912637990,-521.74533198,0.0001,2]
[342461522,1731912638002,-5489.57651562,0.0001,2]
[342461523,1731912638014,-5958.41254585,0.0001,2]
[342461524,1731912638025,-4559.2,0.0001,2]
[342461531,1731912639933,-3142.80000004,0.0001,2]
[342461532,1731912639945,-3735.5,0.0001,2]
[342461533,1731912640035,-31260.4299667,0.0001,2]
[342461534,1731912640167,-556.34888815,0.0001,2]
[342461535,1731912640181,-319.22689663,0.0001,2]
[342461542,1731912640579,-8736.50596931,0.0001,2]
[342461544,1731912640591,-3192.66805708,0.0001,2]
[342461546,1731912640603,-65111.14382854,0.0001,2]
[342461548,1731912640613,-71964.2332378,0.0001,2]
[342461563,1731912643550,-163200.3499575,0.0001,2]
[342461564,1731912643562,-100432.5588028,0.0001,2]
[342461565,1731912643573,-6249.69022005,0.0001,2]
[342461566,1731912643584,-3450.36798654,0.0001,2]
[342461567,1731912643595,-3462.97294534,0.0001,2]
[342461568,1731912643619,-1241.67176072,0.0001,2]
[342461569,1731912643630,-177980.25011147,0.0001,2]
[342461570,1731912643641,-1417.31362859,0.0001,2]
[342461571,1731912643678,-6045.58198307,0.0001,2]
[342461572,1731912643689,-5009.75388417,0.0001,2]
[342461573,1731912643700,-3719.46457848,0.0001,2]
[342461577,1731912643812,-91845.55308223,0.0001,2]
[342461579,1731912643888,-1724.56423225,0.0001,2]
[342461582,1731912643981,-2295.0,0.0001,2]
[342461583,1731912643993,-1328.95007445,0.0001,2]
[342461584,1731912644005,-9701.61933,0.0001,2]
[342461585,1731912644017,-503.598,0.0001,2]
[342461586,1731912644028,-542.92,0.0001,2]
[342461597,1731912645919,-803.42204572,0.0001,2]
[342461598,1731912645931,-4718.85,0.0001,2]
[342461599,1731912645942,-1683.42352676,0.0001,2]
[342461600,1731912645989,-828.67588077,0.0001,2]
[342461601,1731912646067,-25100.36299234,0.0001,2]
[342461602,1731912646147,-787.81006314,0.0001,2]
[342461603,1731912646162,-20384.1602,0.0001,2]
[342461604,1731912646211,-1170.0,0.0001,2]
[342461605,1731912646222,-214565.5801366,0.0001,2]
[342461606,1731912646290,-11127.84921093,0.0001,2]
[342461607,1731912646302,-4546.26324454,0.0001,2]
[342461609,1731912650248,1230.51542117,9.999e-05,3]
[342461610,1731912651873,600.0,9e-05,3]
[342461611,1731912654041,1200.0,9.1e-05,3]
[342461612,1731912656148,1800.0,9.2e-05,3]
[342461613,1731912658251,2500.0,9.3e-05,3]
[342461614,1731912660351,3100.0,9.4e-05,3]
[342461615,1731912662456,600.0,9.5e-05,3]
[342461616,1731912664914,600.0,9.6e-05,3]
[342461617,1731912666692,600.0,9.7e-05,3]
[342461618,1731912668757,600.0,9.8e-05,3]
[342461619,1731912670889,1034.0,9.9e-05,3]
[342461620,1731912687877,250.0,9.794e-05,2]
[342461621,1731912737039,413.79,9.8e-05,2]
[342461622,1731912809225,505.479101,0.000224,120]
[342461623,1731912825015,150.0,9.66e-05,2]
[342461624,1731912857292,2850.08,8.219e-05,2]
[342461625,1731912903215,1570.0341373,0.00023,120]
[342461626,1731912947027,150.0,9.748e-05,2]
[342461627,1731912980074,250.0,9.649e-05,2]
[342461628,1731912986891,1000.0,9.644e-05,2]
[342461629,1731913005568,150.0,9.817e-05,2]
[342461630,1731913005642,150.0,9.786e-05,2]
[342461631,1731913185304,150.0,9.742e-05,2]
[342461632,1731913188600,735.47,9.63e-05,2]
[342461633,1731913244965,150.0,9.694e-05,2]
[342461634,1731913422305,250.0,9.62e-05,2]
[342461635,1731913485392,150.0,9.862e-05,2]
[342461636,1731913509251,206.89,9.633e-05,2]
[342461637,1731913513582,10889.47536004,9.8e-05,2]
[342461639,1731913584373,2707.57,8.219e-05,2]
[342461640,1731913604902,150.0,9.742e-05,2]
[342461641,1731913665430,150.0,9.72e-05,2]
[342461642,1731913694729,1000.0,9.364e-05,2]
[342461651,1731913801096,1285.0,9.9e-05,2]
[342461678,1731913832152,-312.5294,9.9e-05,2]
[342461679,1731913832162,-500.0,9.9e-05,2]
[342461680,1731913832171,-330.1098,9.9e-05,2]
[342461681,1731913832180,-629.8961,9.9e-05,2]
[342461682,1731913832189,-500.0,9.92e-05,2]
[342461683,1731913832198,-150.0,9.96e-05,2]
[342461684,1731913832207,-561.465,9.969e-05,2]
[342461685,1731913832216,-1926.0,9.969e-05,2]
[342461686,1731913832225,-814.0,9.969e-05,2]
[342461687,1731913832234,-3442.4997,9.969e-05,2]
[342461688,1731913832246,-304.5003,9.969e-05,2]
[342461689,1731913832255,-1260.0,9.969e-05,2]
[342461690,1731913832265,-3492.0,9.969e-05,2]
[342461691,1731913832274,-920.0,9.969e-05,2]
[342461692,1731913832284,-500.0,9.973e-05,2]
[342461693,1731913832294,-500.0,9.973e-05,2]
[342461694,1731913832303,-10228.80438768,9.986e-05,2]
[342461695,1731913832315,-2601.5016178,9.986e-05,2]
[342461696,1731913832330,-818.69399452,9.986e-05,2]
[342461697,1731913832339,-5937.0,9.986e-05,2]
[342461698,1731913832348,-1161.0,9.986e-05,2]
[342461699,1731913832357,-250.701,9.986e-05,2]
[342461700,1731913832366,-322.42,9.99e-05,2]
[342461701,1731913832375,-1000.0,9.99e-05,2]
[342461702,1731913832384,-548.8067859,9.992e-05,2]
[342461703,1731913832396,-248.6675257,9.992e-05,2]
[342461704,1731913832405,-1083.0082883,9.992e-05,2]
[342461705,1731913832414,-279.7346496,9.993e-05,2]
[342461706,1731913832423,-310.8017736,9.993e-05,2]
[342461707,1731913832432,-341.8688975,9.993e-05,2]
[342461708,1731913832441,-1218.3132608,9.993e-05,2]
[342461709,1731913832450,-1353.6182333,9.993e-05,2]
[342461710,1731913832460,-1488.9232058,9.993e-05,2]
[342461711,1731913832471,-46497.75440184,9.997e-05,2]
[342461712,1731913832482,-177633.06435033,9.997e-05,2]
[342461713,1731913832493,-12668.91558339,9.997e-05,2]
[342461714,1731913832503,-323.95992037,9.997e-05,2]
[342461715,1731913832537,-54000.00004465,9.997e-05,2]
[342461716,1731913832549,-57999.99933564,9.997e-05,2]
[342461717,1731913832560,-290797.28455588,9.997e-05,2]
[342461718,1731913832569,-1997.051,9.999e-05,2]
[342461719,1731913832578,-171.756,9.999e-05,2]
[342461720,1731913832586,-590.8,9.999e-05,2]
[342461721,1731913832595,-155707.4648701,0.0001,2]
[342461722,1731913832604,-4507.18263128,0.0001,2]
[342461723,1731913832614,-425846.46094273,0.0001,2]
[342461724,1731913832626,-278999.99998299,0.0001,2]
[342461729,1731913838130,-5835.78829024,0.0001,2]
[342461730,1731913838142,-7944.48890895,0.0001,2]
[342461731,1731913838155,-4087.09539973,0.0001,2]
[342461732,1731913838221,-912.15,0.0001,2]
[342461733,1731913838448,-311.21605502,0.0001,2]
[342461734,1731913838459,-2431.4236575,0.0001,2]
[342461735,1731913838475,-39104.53941095,0.0001,2]
[342461744,1731913840068,-13430.95830151,0.0001,2]
[342461745,1731913840080,-15960.50293623,0.0001,2]
[342461746,1731913840164,-626.9,0.0001,2]
[342461747,1731913840175,-9163.03713945,0.0001,2]
[342461748,1731913840186,-3724.44,0.0001,2]
[342461749,1731913840259,-1541.48685082,0.0001,2]
[342461750,1731913840269,-2482.56322458,0.0001,2]
[342461769,1731913843107,-4306.31558047,0.0001,2]
[342461770,1731913843187,-54826.2,0.0001,2]
[342461771,1731913843199,-314.71,0.0001,2]
[342461772,1731913843211,-30591.27883,0.0001,2]
[342461773,1731913843240,500.0,9e-05,2]
[342461774,1731913843265,-12918.21780947,0.0001,2]
[342461775,1731913843277,-4382.10747062,0.0001,2]
[342461776,1731913843289,-4148.79824319,0.0001,2]
[342461777,1731913843300,-250.24219873,0.0001,2]
[342461778,1731913843311,-9438.7125,0.0001,2]
[342461779,1731913843322,-32230.13311428,0.0001,2]
[342461780,1731913843347,-2768002.37647025,0.0001,2]
[342461782,1731913843359,-3015.35727805,0.0001,2]
[342461783,1731913843370,-21007.65440003,0.0001,2]
[342461784,1731913843381,-2766.7812594,0.0001,2]
[342461786,1731913844006,516.18,9e-05,2]
[342461802,1731913853641,1120.2311025,9.999e-05,3]
[342461803,1731913857738,250.0,9.782e-05,2]
[342461804,1731913864589,1800.0,0.00023,120]
[342461805,1731913880824,298.8,9.78e-05,2]
[342461806,1731913892947,211.62,9.771e-05,2]
[342461808,1731913900796,500.0,9e-05,2]
[342461809,1731913901576,529.02,9e-05,2]
[342461810,1731913932412,3600.0,0.00023,120]
[342461813,1731914015814,150.0,9.857e-05,2]
[342461814,1731914022271,280.37,9.71e-05,2]
[342461815,1731914039563,510.0,0.0001,3]
[342461816,1731914039829,165.28,9.668e-05,2]
[342461817,1731914102548,150.0,9.899e-05,2]
[342461818,1731914106026,300.0,9.899e-05,2]
[342461819,1731914145343,150.0,9.834e-05,2]
[342461820,1731914218870,23900.0,9.287e-05,2]